bitfinex/quotes_BTCUSD_20251208
["timestamp","ask_amount","ask_price","bid_price","bid_amount"]
[1765208831907,0.03994596,89839.0,89838.0,0.01113114]
[1765208832082,0.04148993,89839.0,89838.0,0.06010945]
[1765208832774,0.04148993,89839.0,89838.0,0.04897831]
[1765208832968,0.02214596,89837.0,89835.0,0.01113151]
[1765208833178,0.23375525,89838.0,89835.0,0.01113151]
[1765208833179,0.02214596,89836.0,89835.0,0.01113151]
[1765208833378,0.01113201,89831.0,89828.0,0.01113238]
[1765208833601,0.02214596,89834.0,89831.0,0.01113201]
[1765208833796,0.00154397,89836.0,89831.0,0.01113201]
[1765208833797,0.02214596,89833.0,89832.0,0.22263726]
[1765208834000,0.00154397,89836.0,89835.0,0.22263037]
[1765208834626,0.0178,89839.0,89838.0,0.22262294]
[1765208835212,0.01113127,89837.0,89830.0,0.01113213]
[1765208835379,0.02214596,89833.0,89832.0,0.01113189]
[1765208835575,0.02214596,89833.0,89832.0,0.2337697]
[1765208835829,0.02214596,89836.0,89833.0,0.22263533]
[1765208836030,0.02214596,89835.0,89832.0,0.32728005]
[1765208836296,0.02214596,89835.0,89832.0,0.09351035]
[1765208836485,0.02214596,89825.0,89824.0,0.23379021]
[1765208836694,0.03994596,89825.0,89824.0,0.23379021]
[1765208837253,0.0178,89825.0,89824.0,0.23379021]
[1765208837675,0.0188,89825.0,89824.0,0.23679021]
[1765208837877,0.0188,89825.0,89824.0,0.30926585]
[1765208838403,0.0198,89825.0,89824.0,0.31026585]
[1765208838902,0.41722509,89825.0,89824.0,0.004]
[1765208839255,0.74022509,89825.0,89824.0,0.004]
[1765208839646,0.73922509,89825.0,89824.0,0.003]
[1765208839851,0.55019913,89825.0,89824.0,0.004]
[1765208840087,0.34434397,89825.0,89824.0,0.001]
[1765208840286,0.34434397,89825.0,89824.0,0.002]
[1765208840287,0.36948993,89825.0,89824.0,0.002]
[1765208840494,0.49842397,89825.0,89824.0,0.002]
[1765208840646,1.41142796,89825.0,89824.0,0.001]
[1765208840852,0.02214596,89799.0,89796.0,0.01113635]
[1765208841162,0.00199998,89800.0,89796.0,0.01113635]
[1765208841163,0.02214596,89797.0,89796.0,0.01113635]
[1765208841370,0.01113672,89793.0,89786.0,0.01113759]
[1765208841640,0.02214596,89792.0,89791.0,0.01113697]
[1765208841840,0.05228596,89792.0,89791.0,0.03675276]
[1765208842168,0.05228596,89792.0,89791.0,0.25949093]
[1765208843132,0.20336596,89792.0,89791.0,0.02661579]
[1765208843296,0.40395699,89792.0,89791.0,0.001]
[1765208843495,0.03014,89792.0,89791.0,0.22373947]
[1765208843698,0.03014,89792.0,89791.0,0.001]
[1765208843917,0.02314596,89792.0,89791.0,0.003]
[1765208844132,0.00199998,89820.0,89818.0,0.22267043]
[1765208844329,0.00099999,89820.0,89819.0,0.02226704]
[1765208844534,0.03994596,89820.0,89819.0,0.03386399]
[1765208844736,0.03994596,89820.0,89819.0,0.25606809]
[1765208845951,0.04094596,89820.0,89819.0,0.25606809]
[1765208846329,0.0218,89820.0,89819.0,0.32284809]
[1765208846735,0.0218,89820.0,89819.0,0.32184809]
[1765208846736,0.0188,89820.0,89819.0,0.32184809]
[1765208847179,0.0178,89820.0,89819.0,0.41788809]
[1765208847337,0.0188,89820.0,89819.0,0.32684809]
[1765208847547,0.0188,89820.0,89819.0,0.32284809]
[1765208847755,0.0188,89820.0,89819.0,0.41888809]
[1765208847986,0.0188,89820.0,89819.0,0.42388809]
[1765208848165,0.0178,89820.0,89819.0,0.41788809]
[1765208848486,0.0188,89820.0,89819.0,0.41788809]
[1765208848849,0.0178,89820.0,89819.0,0.41788809]
[1765208849047,0.001,89820.0,89819.0,0.41788809]
[1765208849470,0.002,89820.0,89819.0,0.32784809]
[1765208849670,0.002,89820.0,89819.0,0.26206809]
[1765208849877,0.002,89820.0,89819.0,0.25606809]
[1765208849878,0.001,89820.0,89819.0,0.25606809]
[1765208850077,0.001,89820.0,89819.0,0.41788809]
[1765208850282,0.00099999,89840.0,89839.0,0.22262046]
[1765208850523,0.00099999,89840.0,89839.0,0.4757169]
[1765208850997,0.00099999,89850.0,89849.0,0.22259568]
[1765208851198,0.0178,89858.0,89857.0,0.22257587]
[1765208851433,0.0178,89858.0,89857.0,0.28835587]
[1765208851589,0.0178,89858.0,89857.0,0.38439587]
[1765208851793,0.0178,89858.0,89857.0,0.49287515]
[1765208852528,0.0178,89858.0,89857.0,0.33105515]
[1765208853732,0.0188,89858.0,89857.0,0.22557587]
[1765208854032,0.02034397,89858.0,89857.0,0.22557587]
[1765208855749,0.02034397,89858.0,89857.0,0.003]
[1765208855750,0.75236499,89858.0,89857.0,0.003]
[1765208855902,0.72454332,89858.0,89857.0,0.003]
[1765208856316,0.78706631,89858.0,89857.0,0.003]
[1765208856521,1.54405931,89858.0,89857.0,0.003]
[1765208856723,0.01113089,89840.0,89833.0,0.01113176]
[1765208856948,0.22262859,89836.0,89833.0,0.01113176]
[1765208857124,0.23375803,89837.0,89834.0,0.2827448]
[1765208857326,0.23375803,89837.0,89833.0,0.2337667]
[1765208857327,0.26158894,89836.0,89833.0,0.01113176]
[1765208857527,0.01113176,89833.0,89827.0,0.01113251]
[1765208857728,0.06436,89839.0,89828.0,0.01113238]
[1765208857729,0.02214596,89829.0,89828.0,0.01113238]
[1765208858174,0.02214596,89835.0,89834.0,0.01113164]
[1765208858337,0.02214596,89834.0,89833.0,0.22263449]
[1765208858530,0.23376761,89833.0,89830.0,0.23377383]
[1765208858717,0.02214596,89832.0,89831.0,0.23377176]
[1765208859333,0.02214596,89836.0,89835.0,0.22262994]
[1765208859579,0.02214596,89835.0,89834.0,0.23376406]
[1765208859733,0.02214596,89833.0,89832.0,0.01113189]
[1765208859930,0.02214596,89833.0,89832.0,0.2337697]
[1765208861066,0.001,89833.0,89832.0,0.2357697]
[1765208861252,0.001,89833.0,89832.0,0.30632793]
[1765208861682,0.01113387,89816.0,89807.0,0.04264498]
[1765208861883,0.02214596,89807.0,89806.0,0.23383501]
[1765208862110,0.02214596,89809.0,89808.0,0.23383055]
[1765208862307,0.02214596,89809.0,89806.0,0.04212383]
[1765208862308,0.01113635,89796.0,89790.0,0.01113709]
[1765208862466,0.0178,89796.0,89795.0,0.01113647]
[1765208862687,0.03994596,89796.0,89795.0,0.025614]
[1765208862894,0.24487551,89795.0,89791.0,0.01113697]
[1765208863121,0.01113672,89793.0,89789.0,0.23388024]
[1765208863331,0.02214596,89795.0,89794.0,0.22273203]
[1765208863548,0.02214596,89795.0,89793.0,0.22273451]
[1765208863759,0.02214596,89795.0,89791.0,0.01113697]
[1765208863972,0.02214596,89795.0,89793.0,0.22273325]
[1765208864168,0.0188,89796.0,89795.0,0.22272955]
[1765208864169,0.0178,89796.0,89795.0,0.22272955]
[1765208864448,0.0178,89796.0,89795.0,0.31070955]
[1765208864643,0.0178,89796.0,89795.0,0.40507955]
[1765208864883,0.0178,89796.0,89795.0,0.51355883]
[1765208865377,0.00199998,89810.0,89809.0,0.22269483]
[1765208865378,0.00099999,89810.0,89809.0,0.22269483]
[1765208865735,0.01113139,89836.0,89809.0,0.28219483]
[1765208865899,0.001,89850.0,89837.0,0.01113127]
[1765208865900,0.01879999,89840.0,89837.0,0.01113127]
[1765208866046,0.03994596,89839.0,89838.0,0.22262236]
[1765208866246,0.0178,89839.0,89838.0,0.22262236]
[1765208867383,0.0178,89839.0,89838.0,0.29818205]
[1765208867627,0.0188,89839.0,89838.0,0.22262236]
[1765208867830,0.0188,89839.0,89838.0,0.37649236]
[1765208868238,0.0188,89839.0,89838.0,0.22262236]
[1765208868650,0.0198,89839.0,89838.0,0.22462236]
[1765208868850,0.0198,89839.0,89838.0,0.37849236]
[1765208869010,0.0178,89839.0,89838.0,0.48497164]
[1765208869211,0.00099999,89850.0,89849.0,0.22259568]
[1765208869707,0.00154397,89850.0,89848.0,0.22259783]
[1765208870053,0.03495,89849.0,89848.0,0.22259783]
[1765208870280,0.03495,89849.0,89846.0,0.01113015]
[1765208870440,0.04699,89847.0,89845.0,0.23373486]
[1765208870647,0.00154397,89849.0,89848.0,0.22259816]
[1765208872121,0.00154397,89849.0,89848.0,0.22359816]
[1765208872324,0.00154397,89849.0,89848.0,0.22259816]
[1765208872527,0.00154397,89849.0,89848.0,0.22359816]
[1765208872528,0.00354397,89849.0,89848.0,0.22359816]
[1765208872968,0.00154397,89849.0,89848.0,0.22359816]
[1765208873165,0.00154397,89849.0,89848.0,0.29777866]
[1765208873367,0.00354397,89849.0,89848.0,0.29677866]
[1765208873771,0.00154397,89849.0,89848.0,0.29777866]
[1765208873976,0.323,89857.0,89856.0,0.22257834]
[1765208874188,0.3408,89857.0,89856.0,0.22257834]
[1765208874397,0.0178,89857.0,89856.0,0.22257834]
[1765208874575,0.0178,89857.0,89856.0,0.31606393]
[1765208875399,0.0188,89857.0,89856.0,0.31806393]
[1765208875574,0.0198,89857.0,89856.0,0.31806393]
[1765208875778,0.0188,89857.0,89856.0,0.22257834]
[1765208876006,0.0188,89857.0,89856.0,0.22457834]
[1765208876311,0.0178,89857.0,89856.0,0.22257834]
[1765208876463,0.0188,89857.0,89856.0,0.22257834]
[1765208876662,0.0198,89857.0,89856.0,0.22557834]
[1765208876861,0.0178,89857.0,89856.0,0.31636408]
[1765208877291,0.0188,89857.0,89856.0,0.31636408]
[1765208877794,0.0188,89857.0,89856.0,0.47023408]
[1765208878167,0.001,89857.0,89856.0,0.47023408]
[1765208878371,0.0002403,89878.0,89877.0,0.22252634]
[1765208878576,0.0180403,89878.0,89876.0,0.25100881]
[1765208878807,0.02214596,89877.0,89876.0,0.25100881]
[1765208879009,0.02214596,89877.0,89876.0,0.22252881]
[1765208879414,0.02214596,89877.0,89875.0,0.01112656]
[1765208879743,0.02214596,89877.0,89876.0,0.001]
[1765208879899,0.03994596,89877.0,89875.0,0.23365742]
[1765208880301,0.04094596,89877.0,89876.0,0.07394545]
[1765208880557,0.001,89877.0,89876.0,0.22145545]
[1765208880848,0.00139999,89890.0,89888.0,0.22249879]
[1765208881011,0.0004,89890.0,89889.0,0.37826262]
[1765208881212,0.0004,89890.0,89889.0,0.46547262]
[1765208882363,0.0014,89890.0,89889.0,0.47547262]
[1765208882757,0.0004,89890.0,89889.0,0.46547262]
[1765208882979,0.0004,89890.0,89889.0,0.47047262]
[1765208883162,0.0024,89890.0,89889.0,0.47147262]
[1765208883359,0.0014,89890.0,89889.0,0.46647262]
[1765208884383,0.0004,89890.0,89889.0,0.48767262]
[1765208884591,0.0004,89890.0,89889.0,0.46547262]
[1765208884920,0.0014,89890.0,89889.0,0.24797599]
[1765208885054,0.0014,89890.0,89889.0,0.24497599]
[1765208885264,0.0014,89890.0,89889.0,0.24297599]
[1765208885265,0.0004,89890.0,89889.0,0.24297599]
[1765208885462,0.0004,89890.0,89889.0,0.25497599]
[1765208885463,0.0024,89890.0,89889.0,0.25497599]
[1765208885666,0.0014,89890.0,89889.0,0.15876599]
[1765208886093,0.0004,89890.0,89889.0,0.15876599]
[1765208886309,0.0014,89890.0,89889.0,0.15776599]
[1765208886515,0.0014,89890.0,89889.0,0.09746599]
[1765208886516,0.00330437,89890.0,89889.0,0.09746599]
[1765208886712,0.00330437,89890.0,89889.0,0.005]
[1765208886917,0.0017604,89890.0,89889.0,0.28779663]
[1765208887490,0.00230437,89890.0,89889.0,0.003]
[1765208887668,0.00230437,89890.0,89889.0,0.0633]
[1765208887865,0.00330437,89890.0,89889.0,0.002]
[1765208888019,0.00330437,89890.0,89889.0,0.07228813]
[1765208888227,0.00730437,89890.0,89889.0,0.14851]
[1765208888416,0.00230437,89890.0,89889.0,0.14751]
[1765208888616,0.01112483,89889.0,89885.0,0.01112532]
[1765208888850,0.00154397,89889.0,89887.0,0.22249974]
[1765208889026,0.00154397,89889.0,89888.0,0.09572116]
[1765208889228,0.01934397,89889.0,89888.0,0.09572116]
[1765208889436,0.01934397,89889.0,89888.0,0.18293116]
[1765208889437,0.0178,89889.0,89888.0,0.18293116]
[1765208889947,0.0178,89889.0,89888.0,0.09572116]
[1765208890096,0.0178,89889.0,89888.0,0.03542116]
[1765208890555,0.00099999,89880.0,89840.0,0.65897139]
[1765208890767,0.02214596,89885.0,89878.0,0.01112619]
[1765208890898,0.02134397,89889.0,89887.0,0.22250121]
[1765208891097,0.01934397,89889.0,89888.0,0.04895049]
[1765208891301,0.01934397,89889.0,89888.0,0.10925049]
[1765208891514,0.02134397,89889.0,89888.0,0.19646049]
[1765208891718,0.02034397,89889.0,89888.0,0.11025049]
[1765208892109,0.02034397,89889.0,89888.0,0.04895049]
[1765208892110,0.01934397,89889.0,89888.0,0.04895049]
[1765208892516,0.02034397,89889.0,89888.0,0.04995049]
[1765208892740,0.02034397,89889.0,89888.0,0.05095049]
[1765208892945,0.02034397,89889.0,89888.0,0.002]
[1765208893471,0.18887993,89889.0,89888.0,0.002]
[1765208893613,0.51187993,89889.0,89888.0,0.002]
[1765208894111,0.34334397,89889.0,89888.0,0.002]
[1765208894314,0.02034397,89889.0,89888.0,0.002]
[1765208894525,0.01967434,89889.0,89888.0,0.04803798]
[1765208894716,0.03379917,89889.0,89886.0,0.23362792]
[1765208894898,0.02234397,89889.0,89887.0,0.2224996]
[1765208895242,0.01934397,89889.0,89884.0,0.01112545]
[1765208895438,0.01934397,89889.0,89888.0,0.001]
[1765208895598,0.02034397,89889.0,89888.0,0.001]
[1765208895808,0.02034397,89889.0,89888.0,0.09455294]
[1765208896140,0.02234397,89889.0,89888.0,0.09455294]
[1765208896735,0.002,89889.0,89888.0,0.24112465]
[1765208896935,0.002,89889.0,89888.0,0.23886294]
[1765208897139,0.0004,89890.0,89889.0,0.22249663]
[1765208897346,0.0004,89890.0,89889.0,0.47628591]
[1765208898398,0.0004,89890.0,89889.0,0.47728591]
[1765208898399,0.0014,89890.0,89889.0,0.47728591]
[1765208898607,0.0014,89890.0,89889.0,0.47928591]
[1765208899028,0.0014,89890.0,89889.0,0.50148591]
[1765208899232,0.0014,89890.0,89889.0,0.47928591]
[1765208899748,0.0004,89890.0,89889.0,0.39096591]
[1765208900060,0.0014,89890.0,89889.0,0.33397591]
[1765208900227,0.0014,89890.0,89889.0,0.003]
[1765208900228,0.00294397,89890.0,89889.0,0.003]
[1765208900427,0.02408993,89890.0,89889.0,0.002]
[1765208900732,0.00230437,89890.0,89889.0,0.002]
[1765208900950,0.00330437,89890.0,89889.0,0.001]
[1765208901150,0.00530437,89890.0,89889.0,0.07230059]
[1765208901350,0.00430437,89890.0,89889.0,0.07130059]
[1765208901582,0.00230437,89890.0,89889.0,0.07130059]
[1765208901827,0.00430437,89890.0,89889.0,0.07130059]
[1765208901955,0.0027604,89890.0,89889.0,0.21998455]
[1765208902153,0.0017604,89890.0,89889.0,0.21661059]
[1765208902864,0.0007604,89890.0,89889.0,0.21661059]
[1765208903294,0.0017604,89890.0,89889.0,0.23981059]
[1765208903631,0.40139999,89900.0,89889.0,0.23981059]
[1765208903632,0.4004,89900.0,89899.0,0.22247188]
[1765208903764,0.4004,89900.0,89899.0,0.34938131]
[1765208903948,0.4004,89900.0,89899.0,0.41450131]
[1765208904782,0.0004,89920.0,89919.0,0.2224224]
[1765208904977,0.0004,89920.0,89919.0,0.37160762]
[1765208905187,0.0004,89920.0,89919.0,0.45892762]
[1765208906978,0.0004,89920.0,89919.0,0.46092762]
[1765208907296,0.0014,89920.0,89919.0,0.37460762]
[1765208907460,0.0004,89920.0,89919.0,0.37560762]
[1765208907658,0.0004,89920.0,89919.0,0.31761762]
[1765208907820,0.0014,89920.0,89919.0,0.31561762]
[1765208908026,0.0014,89920.0,89919.0,0.31761762]
[1765208908231,0.00294397,89920.0,89919.0,0.004]
[1765208908441,0.02074397,89920.0,89919.0,0.002]
[1765208908660,0.20999242,89920.0,89919.0,0.002]
[1765208908883,0.53299242,89920.0,89919.0,0.002]
[1765208909172,0.23356486,89911.0,89907.0,0.0111226]
[1765208909381,0.00154397,89911.0,89908.0,0.25977701]
[1765208909588,0.00154397,89911.0,89908.0,0.03732887]
[1765208909793,0.0111226,89907.0,89901.0,0.01112334]
[1765208909996,0.0111226,89907.0,89892.0,0.02848]
[1765208909997,0.01112309,89903.0,89897.0,0.01112384]
[1765208910205,0.03481302,89903.0,89900.0,0.22246898]
[1765208910426,0.01112322,89902.0,89897.0,0.01112384]
[1765208910635,0.01112433,89893.0,89890.0,0.0111247]
[1765208910849,0.0178,89893.0,89891.0,0.00618547]
[1765208911051,0.0178,89893.0,89891.0,0.22867543]
[1765208911295,0.0178,89893.0,89891.0,0.00618547]
[1765208911495,0.24183249,89893.0,89891.0,0.00618547]
[1765208911775,0.01934397,89893.0,89892.0,0.05241648]
[1765208911963,0.01934397,89893.0,89881.0,0.22251555]
[1765208911964,0.02214596,89883.0,89881.0,0.22251555]
[1765208912167,0.02214596,89883.0,89880.0,0.01112594]
[1765208912398,0.02214596,89883.0,89881.0,0.22251643]
[1765208912604,0.02214596,89888.0,89883.0,0.01112557]
[1765208912794,0.02214596,89888.0,89886.0,0.22250331]
[1765208912958,0.24464618,89888.0,89884.0,0.01112545]
[1765208913134,0.02214596,89888.0,89885.0,0.23363105]
[1765208913542,0.02214596,89888.0,89886.0,0.2225027]
[1765208913952,0.03327091,89888.0,89885.0,0.01112532]
[1765208914149,0.03527091,89888.0,89885.0,0.01112532]
[1765208914347,0.02214596,89888.0,89886.0,0.2225033]
[1765208914743,0.02513689,89888.0,89886.0,0.22250342]
[1765208914943,0.02213689,89888.0,89886.0,0.22250342]
[1765208915166,0.02213689,89888.0,89887.0,0.07241557]
[1765208915380,0.02213689,89888.0,89883.0,0.01112557]
[1765208915381,0.14621507,89887.0,89881.0,0.01112582]
[1765208915619,0.14621507,89887.0,89876.0,0.01112644]
[1765208915620,0.23362926,89886.0,89885.0,0.001]
[1765208915794,0.36871926,89886.0,89885.0,0.001]
[1765208915993,0.02213689,89885.0,89881.0,0.22251505]
[1765208916207,0.25576936,89885.0,89882.0,0.0367151]
[1765208916419,0.02213689,89885.0,89883.0,0.22251098]
[1765208916571,0.004,89888.0,89883.0,0.22251098]
[1765208916572,0.001,89888.0,89887.0,0.22250158]
[1765208916780,0.0208,89888.0,89886.0,0.22250374]
[1765208917202,0.24029972,89888.0,89885.0,0.01112532]
[1765208917400,0.24029972,89888.0,89886.0,0.05039849]
[1765208917601,0.02213689,89887.0,89886.0,0.05039849]
[1765208918423,0.0178,89888.0,89887.0,0.22250158]
[1765208918659,0.04093689,89888.0,89887.0,0.22250158]
[1765208918864,0.02213689,89887.0,89886.0,0.22350406]
[1765208919139,0.02213689,89887.0,89886.0,0.22250406]
[1765208919541,0.02313689,89887.0,89886.0,0.22350406]
[1765208919743,0.02513689,89887.0,89886.0,0.29480673]
[1765208920013,0.02313689,89887.0,89886.0,0.29480673]
[1765208920414,0.02513689,89887.0,89886.0,0.29480673]
[1765208920610,0.02513689,89887.0,89886.0,0.22350406]
[1765208920818,0.003,89887.0,89886.0,0.22350406]
[1765208921032,0.003,89887.0,89886.0,0.36881406]
[1765208921240,0.00024022,89898.0,89897.0,0.22247683]
[1765208921409,0.22248425,89894.0,89886.0,0.0121252]
[1765208921551,0.01112433,89893.0,89890.0,0.2336177]
[1765208921774,0.02213689,89891.0,89890.0,0.0111247]
[1765208921977,0.02213689,89890.0,89889.0,0.01112483]
[1765208922345,0.02213689,89890.0,89889.0,0.07008837]
[1765208923091,0.001,89891.0,89890.0,0.22249415]
[1765208923472,0.0178,89892.0,89891.0,0.22249168]
[1765208923968,0.0178,89903.0,89897.0,0.22247683]
[1765208924177,0.0178,89903.0,89897.0,0.40043345]
[1765208925129,0.00099999,89910.0,89897.0,0.48630345]
[1765208925470,0.00199998,89910.0,89897.0,0.48630345]
[1765208925635,0.00124022,89898.0,89897.0,0.48730345]
[1765208926173,0.00024022,89898.0,89897.0,0.48630345]
[1765208926400,0.00024022,89898.0,89897.0,0.40043345]
[1765208926675,0.00124022,89898.0,89897.0,0.40643345]
[1765208927180,0.00124022,89898.0,89897.0,0.34372345]
[1765208927540,0.00124022,89898.0,89897.0,0.34572345]
[1765208927742,0.00024022,89898.0,89897.0,0.34372345]
[1765208928145,0.00124022,89898.0,89897.0,0.49030345]
[1765208928341,0.00124022,89898.0,89897.0,0.40443345]
[1765208928655,0.00024022,89898.0,89897.0,0.48830345]
[1765208928827,0.00124022,89898.0,89897.0,0.48830345]
[1765208929027,0.00124022,89898.0,89897.0,0.49230345]
[1765208929227,0.00124022,89898.0,89897.0,0.48830345]
[1765208929447,0.00024022,89898.0,89897.0,0.48630345]
[1765208929655,0.00024022,89898.0,89897.0,0.48930345]
[1765208929856,0.00124022,89898.0,89897.0,0.40543345]
[1765208930094,0.00124022,89898.0,89897.0,0.40243345]
[1765208930386,0.00124022,89898.0,89897.0,0.34772345]
[1765208930566,0.00124022,89898.0,89897.0,0.08542662]
[1765208930765,0.00124022,89898.0,89897.0,0.002]
[1765208930968,0.00024022,89898.0,89897.0,0.03582]
[1765208931169,0.00124022,89898.0,89897.0,0.03782]
[1765208931554,0.00124022,89898.0,89897.0,0.1824]
[1765208931758,0.00024022,89898.0,89897.0,0.51135611]
[1765208931964,0.00124022,89898.0,89897.0,0.51635611]
[1765208932167,0.01112198,89912.0,89908.0,0.22244737]
[1765208932366,0.0178,89911.0,89907.0,0.0111226]
[1765208932634,0.0178,89911.0,89910.0,0.22244466]
[1765208932769,0.03046607,89911.0,89910.0,0.02558127]
[1765208932970,0.17242607,89911.0,89902.0,0.22246315]
[1765208933169,0.03325961,89906.0,89904.0,0.22245932]
[1765208933391,0.02213689,89906.0,89905.0,0.22245703]
[1765208933736,0.02213689,89906.0,89899.0,0.22247001]
[1765208933737,0.02213689,89898.0,89895.0,0.23360469]
[1765208933890,0.02213689,89898.0,89897.0,0.02667293]
[1765208934058,0.02213689,89898.0,89897.0,0.02467293]
[1765208934059,0.24461124,89898.0,89897.0,0.02467293]
[1765208934658,0.02213689,89898.0,89897.0,0.02467293]
[1765208934871,0.0178,89899.0,89897.0,0.24714731]
[1765208935153,0.38663124,89898.0,89897.0,0.02467293]
[1765208935349,0.38663124,89898.0,89865.0,0.0111278]
[1765208935350,0.01112668,89874.0,89865.0,0.0111278]
[1765208935547,0.38552299,89897.0,89876.0,0.22252859]
[1765208935548,0.323,89878.0,89876.0,0.22252859]
[1765208935758,0.3408,89878.0,89877.0,0.02447818]
[1765208935928,0.323,89878.0,89877.0,0.02447818]
[1765208936348,0.01112668,89874.0,89870.0,0.01112718]
[1765208936578,0.02213689,89873.0,89869.0,0.23367322]
[1765208936746,0.0332637,89873.0,89871.0,0.222541]
[1765208937000,0.02213689,89873.0,89871.0,0.222541]
[1765208937140,0.02213689,89873.0,89871.0,0.27150066]
[1765208937543,0.23365721,89876.0,89871.0,0.27150066]
[1765208937544,0.01112644,89876.0,89873.0,0.23366119]
[1765208937747,0.002,89878.0,89876.0,0.22252828]
[1765208937998,0.0178,89879.0,89876.0,0.22252828]
[1765208938202,0.0178,89878.0,89877.0,0.27394669]
[1765208939510,0.56332386,89878.0,89877.0,0.0402955]
[1765208939715,0.001,89879.0,89878.0,0.22252386]
[1765208940064,0.001,89879.0,89878.0,0.28153386]
[1765208940266,0.001,89879.0,89878.0,0.37540386]
[1765208940411,0.0178,89892.0,89889.0,0.01112483]
[1765208940614,0.0178,89892.0,89891.0,0.25540168]
[1765208942609,0.0178,89892.0,89891.0,0.22249168]
[1765208942930,0.0178,89892.0,89889.0,0.01112483]
[1765208943155,0.0178,89892.0,89891.0,0.22249168]
[1765208943350,0.0178,89892.0,89891.0,0.35376805]
[1765208943559,0.0178,89892.0,89891.0,0.44763805]
[1765208943757,0.0002402,89906.0,89905.0,0.22245703]
[1765208944762,0.0002402,89906.0,89904.0,0.02848]
[1765208944937,0.03004702,89906.0,89905.0,0.22345703]
[1765208945143,0.0022402,89906.0,89905.0,0.28246703]
[1765208945494,0.1376702,89906.0,89905.0,0.001]
[1765208945624,0.18761391,89906.0,89905.0,0.003]
[1765208945825,0.16547702,89906.0,89905.0,0.003]
[1765208946051,0.1376802,89906.0,89905.0,0.003]
[1765208946447,0.18562391,89906.0,89905.0,0.002]
[1765208946693,0.02213689,89895.0,89894.0,0.01112421]
[1765208946902,0.02213689,89894.0,89893.0,0.23361058]
[1765208947091,0.01112421,89894.0,89891.0,0.23361587]
[1765208947411,0.01112446,89892.0,89890.0,0.22249357]
[1765208947692,0.01112433,89893.0,89890.0,0.0111247]
[1765208947993,0.00048586,89893.0,89892.0,0.2224892]
[1765208948292,0.00048586,89897.0,89895.0,0.23360513]
[1765208948677,0.02213689,89896.0,89895.0,0.23360513]
[1765208949002,0.02213689,89896.0,89894.0,0.23360816]
[1765208949204,0.0116097,89897.0,89894.0,0.01112421]
[1765208949449,0.06965275,89895.0,89892.0,0.23360853]
[1765208949661,0.01112446,89892.0,89889.0,0.22249441]
[1765208949963,0.00048586,89891.0,89889.0,0.22249571]
[1765208950138,0.00048586,89891.0,89878.0,0.01112619]
[1765208950139,0.02213689,89886.0,89878.0,0.01112619]
[1765208950471,0.04779,89890.0,89877.0,0.01112631]
[1765208950472,0.23364541,89880.0,89877.0,0.01112631]
[1765208950620,0.23364045,89882.0,89879.0,0.01112606]
[1765208950819,0.23364428,89881.0,89878.0,0.00712122]
[1765208951022,0.02213689,89886.0,89878.0,0.00712122]
[1765208951191,0.02213689,89886.0,89879.0,0.02296561]
[1765208951386,0.02213689,89886.0,89882.0,0.22251256]
[1765208951609,0.01112557,89883.0,89879.0,0.02296561]
[1765208951844,0.23363508,89884.0,89880.0,0.22251855]
[1765208952406,0.001,89881.0,89880.0,0.23364449]
[1765208952748,0.01112532,89885.0,89882.0,0.01112569]
[1765208953044,0.01266929,89885.0,89883.0,0.22251148]
[1765208953281,0.001,89884.0,89879.0,0.01112606]
[1765208953488,0.01112582,89881.0,89879.0,0.02873258]
[1765208953601,0.01112718,89870.0,89858.0,0.22257134]
[1765208953807,0.25913071,89864.0,89860.0,0.22256776]
[1765208954007,0.22256238,89863.0,89861.0,0.02713153]
[1765208954430,0.23370631,89857.0,89853.0,0.23371353]
[1765208954650,0.01112879,89857.0,89853.0,0.23371353]
[1765208954867,0.01112941,89852.0,89849.0,0.00193987]
[1765208955066,0.2225842,89854.0,89851.0,0.22258984]
[1765208955291,0.23371336,89854.0,89852.0,0.02752695]
[1765208955719,0.02213689,89853.0,89852.0,0.01112941]
[1765208955942,0.01112916,89854.0,89850.0,0.01112966]
[1765208956151,0.25584457,89856.0,89852.0,0.01112941]
[1765208956354,0.01112904,89855.0,89850.0,0.23372203]
[1765208956560,0.22258355,89854.0,89851.0,0.05089974]
[1765208956762,0.2225865,89853.0,89851.0,0.05089974]
[1765208957059,0.001,89854.0,89851.0,0.06202927]
[1765208957277,0.05632,89852.0,89851.0,0.05089974]
[1765208957470,0.05632,89852.0,89849.0,0.00193987]
[1765208957471,0.02213689,89850.0,89849.0,0.00193987]
[1765208957668,0.03143689,89850.0,89849.0,0.00193987]
[1765208957875,0.12330689,89850.0,89849.0,0.00193987]
[1765208958470,0.24472762,89851.0,89849.0,0.00193987]
[1765208958826,0.05632,89850.0,89849.0,0.00193987]
[1765208959035,0.05832,89850.0,89849.0,0.00193987]
[1765208959245,0.05632,89850.0,89849.0,0.00193987]
[1765208959982,0.05732,89850.0,89849.0,0.00293987]
[1765208960433,0.05632,89850.0,89849.0,0.00193987]
[1765208960768,0.05732,89850.0,89849.0,0.00293987]
[1765208961254,0.05932,89850.0,89849.0,0.00293987]
[1765208961428,0.17487086,89850.0,89849.0,0.00293987]
[1765208962623,0.56039385,89850.0,89849.0,0.00293987]
[1765208963210,0.06086397,89850.0,89849.0,0.00293987]
[1765208963456,0.02234397,89850.0,89849.0,0.00293987]
[1765208963814,0.02134397,89850.0,89849.0,0.00193987]
[1765208964012,0.01934397,89850.0,89849.0,0.00193987]
[1765208964231,0.02134397,89850.0,89849.0,0.00193987]
[1765208964441,0.01934397,89850.0,89849.0,0.00193987]
[1765208964666,0.01934397,89850.0,89849.0,0.02773391]
[1765208964996,0.02034397,89850.0,89849.0,0.02773391]
[1765208965200,0.02134397,89850.0,89849.0,0.02873391]
[1765208965409,0.09980086,89850.0,89849.0,0.00293987]
[1765208965604,0.09880086,89850.0,89849.0,0.00193987]
[1765208965810,0.19067086,89850.0,89849.0,0.00193987]
[1765208966008,0.19167086,89850.0,89849.0,0.00293987]
[1765208966387,0.09980086,89850.0,89849.0,0.00293987]
[1765208967193,0.32239407,89850.0,89849.0,0.00293987]
[1765208967405,0.002,89850.0,89849.0,0.00293987]
[1765208967572,0.002,89850.0,89849.0,0.22553555]
[1765208967777,0.002,89850.0,89849.0,0.03995261]
[1765208968092,0.22459321,89850.0,89849.0,0.03995261]
[1765208968316,0.002,89850.0,89849.0,0.03995261]
[1765208968516,0.22359321,89850.0,89849.0,0.03895261]
[1765208968696,0.22259321,89850.0,89849.0,0.03895261]
[1765208968900,0.22359321,89850.0,89849.0,0.04095261]
[1765208969105,0.37178321,89850.0,89849.0,0.00393987]
[1765208969323,0.3929201,89850.0,89849.0,0.00193987]
[1765208969495,0.7169201,89850.0,89849.0,0.00193987]
[1765208970906,0.71746407,89850.0,89849.0,0.00193987]